[Event "Titled Tuesday Blitz October 26 2021"]
[White "Nesterov, Arseniy"]
[Black "Trost, Edvin"]
[WhiteFideId "24198455"]
[BlackFideId "1729519"]
[WhiteElo "2494"]
[BlackElo "2026"]
[Result "1-0"]
[Round "05"]
[TimeControl "180+1"]
[Date "2021.10.26"]
[WhiteClock "0:00:54"]
[BlackClock "0:01:25"]

1. d4 {[%clk 0:03:00]}  Nf6 {[%clk 0:02:57]} 2. c4 {[%clk 0:03:01]}  e6 {[%clk 0:02:57]} 3. Nf3 {[%clk 0:03:01]}  d5 {[%clk 0:02:57]} 4. Nc3 {[%clk 0:03:01]}  c6 {[%clk 0:02:51]} 5. e3 {[%clk 0:03:01]}  Bd6 {[%clk 0:02:49]} 6. Bd3 {[%clk 0:03:00]}  O-O {[%clk 0:02:49]} 7. O-O {[%clk 0:02:59]}  dxc4 {[%clk 0:02:45]} 8. Bxc4 {[%clk 0:03:00]}  Nbd7 {[%clk 0:02:45]} 9. e4 {[%clk 0:02:57]}  e5 {[%clk 0:02:46]} 10. Be3 {[%clk 0:02:57]}  exd4 {[%clk 0:02:44]} 11. Bxd4 {[%clk 0:02:56]}  Qc7 {[%clk 0:02:41]} 12. h3 {[%clk 0:02:31]}  Ne5 {[%clk 0:02:37]} 13. Nxe5 {[%clk 0:02:26]}  Bxe5 {[%clk 0:02:38]} 14. Bxe5 {[%clk 0:02:26]}  Qxe5 {[%clk 0:02:37]} 15. Qe2 {[%clk 0:02:27]}  Be6 {[%clk 0:02:33]} 16. Bxe6 {[%clk 0:02:20]}  Qxe6 {[%clk 0:02:32]} 17. Rad1 {[%clk 0:02:15]}  Rfe8 {[%clk 0:02:29]} 18. Rfe1 {[%clk 0:02:13]}  Rad8 {[%clk 0:02:29]} 19. Rxd8 {[%clk 0:01:55]}  Rxd8 {[%clk 0:02:29]} 20. Rd1 {[%clk 0:01:55]}  Qe8 {[%clk 0:02:10]} 21. Rxd8 {[%clk 0:01:51]}  Qxd8 {[%clk 0:02:10]} 22. e5 {[%clk 0:01:51]}  Nd5 {[%clk 0:02:07]} 23. Ne4 {[%clk 0:01:42]}  Nf4 {[%clk 0:01:58]} 24. Qg4 {[%clk 0:01:19]}  Ne6 {[%clk 0:01:49]} 25. Nd6 {[%clk 0:01:15]}  Qa5 {[%clk 0:01:49]} 26. Qf5 {[%clk 0:01:05]}  Qc7 {[%clk 0:01:48]} 27. Kh2 {[%clk 0:00:58]}  g6 {[%clk 0:01:46]} 28. Qf6 {[%clk 0:00:56]}  Ng7 {[%clk 0:01:25]} 29. Qxg7+ {[%clk 0:00:54]} 1-0


[Site "https://www.chess.com"]

[Event "Titled Tuesday Blitz October 26 2021"]
[White "Nozdrachev, Leonid"]
[Black "Mikhailovsky, Vladimir"]
[WhiteFideId "24113433"]
[BlackFideId "34105414"]
[WhiteElo "2124"]
[BlackElo "2402"]
[Result "1/2-1/2"]
[Round "05"]
[TimeControl "180+1"]
[Date "2021.10.26"]
[WhiteClock "0:00:20"]
[BlackClock "0:00:45"]

1. d4 {[%clk 0:02:21]}  d5 {[%clk 0:02:54]} 2. c4 {[%clk 0:02:18]}  e6 {[%clk 0:02:54]} 3. Nf3 {[%clk 0:02:16]}  Nf6 {[%clk 0:02:54]} 4. g3 {[%clk 0:02:16]}  dxc4 {[%clk 0:02:47]} 5. Bg2 {[%clk 0:02:15]}  Bb4+ {[%clk 0:02:48]} 6. Bd2 {[%clk 0:02:10]}  Bd6 {[%clk 0:02:49]} 7. O-O {[%clk 0:02:05]}  O-O {[%clk 0:02:49]} 8. Na3 {[%clk 0:02:03]}  Bxa3 {[%clk 0:02:45]} 9. bxa3 {[%clk 0:02:04]}  b5 {[%clk 0:02:38]} 10. Ne5 {[%clk 0:01:57]}  Nd5 {[%clk 0:02:38]} 11. e4 {[%clk 0:01:51]}  Nf6 {[%clk 0:02:08]} 12. Bb4 {[%clk 0:01:42]}  Re8 {[%clk 0:02:05]} 13. a4 {[%clk 0:01:42]}  a6 {[%clk 0:02:04]} 14. axb5 {[%clk 0:01:40]}  axb5 {[%clk 0:02:05]} 15. a4 {[%clk 0:01:41]}  c6 {[%clk 0:01:40]} 16. axb5 {[%clk 0:01:27]}  Rxa1 {[%clk 0:01:40]} 17. Qxa1 {[%clk 0:01:28]}  cxb5 {[%clk 0:01:41]} 18. Qa7 {[%clk 0:01:26]}  Na6 {[%clk 0:01:35]} 19. Qxf7+ {[%clk 0:01:00]}  Kh8 {[%clk 0:01:35]} 20. Qa7 {[%clk 0:00:42]}  Kg8 {[%clk 0:01:16]} 21. Qf7+ {[%clk 0:00:24]}  Kh8 {[%clk 0:01:17]} 22. Qa7 {[%clk 0:00:21]}  Kg8 {[%clk 0:00:45]} 23. Qf7+ {[%clk 0:00:20]} 1/2-1/2


[Site "https://www.chess.com"]

[Event "Titled Tuesday Blitz October 26 2021"]
[White "Pultinevicius, Paulius"]
[Black "Janaszak, Dawid"]
[WhiteFideId "12809390"]
[BlackFideId "1119206"]
[WhiteElo "2467"]
[BlackElo "2215"]
[Result "1-0"]
[Round "05"]
[TimeControl "180+1"]
[Date "2021.10.26"]
[WhiteClock "0:00:06"]
[BlackClock "0:00:02"]

1. c4 {[%clk 0:03:00]}  g6 {[%clk 0:02:57]} 2. d4 {[%clk 0:02:59]}  Bg7 {[%clk 0:02:57]} 3. e4 {[%clk 0:02:59]}  e6 {[%clk 0:02:50]} 4. Nf3 {[%clk 0:01:46]}  Ne7 {[%clk 0:02:46]} 5. Nc3 {[%clk 0:01:45]}  d5 {[%clk 0:02:46]} 6. cxd5 {[%clk 0:01:20]}  exd5 {[%clk 0:02:47]} 7. e5 {[%clk 0:01:20]}  Bg4 {[%clk 0:02:39]} 8. Be2 {[%clk 0:01:19]}  O-O {[%clk 0:02:37]} 9. O-O {[%clk 0:01:18]}  c5 {[%clk 0:02:32]} 10. dxc5 {[%clk 0:01:03]}  Nbc6 {[%clk 0:02:32]} 11. Bf4 {[%clk 0:01:01]}  Qa5 {[%clk 0:02:15]} 12. Rc1 {[%clk 0:00:56]}  Qxc5 {[%clk 0:02:02]} 13. h3 {[%clk 0:00:55]}  Bf5 {[%clk 0:01:46]} 14. Nb5 {[%clk 0:00:53]}  Qb6 {[%clk 0:01:44]} 15. Qd2 {[%clk 0:00:36]}  Be4 {[%clk 0:01:36]} 16. Rfe1 {[%clk 0:00:36]}  d4 {[%clk 0:01:18]} 17. Nd6 {[%clk 0:00:24]}  Bd5 {[%clk 0:01:11]} 18. Bc4 {[%clk 0:00:23]}  Rad8 {[%clk 0:00:54]} 19. Bg5 {[%clk 0:00:18]}  Rd7 {[%clk 0:00:43]} 20. Bxe7 {[%clk 0:00:16]}  Nxe7 {[%clk 0:00:44]} 21. Bxd5 {[%clk 0:00:15]}  Nxd5 {[%clk 0:00:44]} 22. Nc4 {[%clk 0:00:08]}  Qb5 {[%clk 0:00:37]} 23. Qxd4 {[%clk 0:00:08]}  Nb4 {[%clk 0:00:35]} 24. Nd6 {[%clk 0:00:09]}  Qa5 {[%clk 0:00:24]} 25. a3 {[%clk 0:00:09]}  Nc6 {[%clk 0:00:23]} 26. Qf4 {[%clk 0:00:04]}  Qb6 {[%clk 0:00:13]} 27. Rcd1 {[%clk 0:00:04]}  Qxb2 {[%clk 0:00:12]} 28. Nc4 {[%clk 0:00:04]}  Rxd1 {[%clk 0:00:08]} 29. Nxb2 {[%clk 0:00:04]}  Rxe1+ {[%clk 0:00:08]} 30. Nxe1 {[%clk 0:00:05]}  Nxe5 {[%clk 0:00:08]} 31. Nf3 {[%clk 0:00:05]}  Nc6 {[%clk 0:00:07]} 32. Nc4 {[%clk 0:00:04]}  h6 {[%clk 0:00:08]} 33. Nd6 {[%clk 0:00:04]}  b6 {[%clk 0:00:06]} 34. Qc4 {[%clk 0:00:05]}  Na5 {[%clk 0:00:06]} 35. Qd5 {[%clk 0:00:05]}  Bf6 {[%clk 0:00:05]} 36. Nd2 {[%clk 0:00:05]}  Kg7 {[%clk 0:00:06]} 37. N2e4 {[%clk 0:00:05]}  Ba1 {[%clk 0:00:05]} 38. h4 {[%clk 0:00:05]}  h5 {[%clk 0:00:05]} 39. g4 {[%clk 0:00:04]}  hxg4 {[%clk 0:00:05]} 40. h5 {[%clk 0:00:05]}  gxh5 {[%clk 0:00:05]} 41. Ng3 {[%clk 0:00:05]}  Kg6 {[%clk 0:00:02]} 42. Qf5+ {[%clk 0:00:05]}  Kg7 {[%clk 0:00:02]} 43. Qg5+ {[%clk 0:00:05]}  Kh7 {[%clk 0:00:01]} 44. Qxh5+ {[%clk 0:00:05]}  Kg7 {[%clk 0:00:02]} 45. Qg5+ {[%clk 0:00:05]}  Kh7 {[%clk 0:00:02]} 46. Ngf5 {[%clk 0:00:06]} 1-0


[Site "https://www.chess.com"]

[Event "Titled Tuesday Blitz October 26 2021"]
[White "Rozman, Levy"]
[Black "Martinez Alcantara, Jose Eduardo"]
[WhiteFideId "2039877"]
[BlackFideId "3805662"]
[WhiteElo "2376"]
[BlackElo "2690"]
[Result "0-1"]
[Round "05"]
[TimeControl "180+1"]
[Date "2021.10.26"]
[WhiteClock "0:00:01"]
[BlackClock "0:00:16"]

1. c4 {[%clk 0:03:00]}  c5 {[%clk 0:02:59]} 2. Nf3 {[%clk 0:03:00]}  Nc6 {[%clk 0:03:00]} 3. e3 {[%clk 0:03:00]}  g6 {[%clk 0:02:48]} 4. d4 {[%clk 0:03:00]}  d6 {[%clk 0:02:48]} 5. d5 {[%clk 0:03:00]}  Na5 {[%clk 0:02:43]} 6. Bd2 {[%clk 0:02:55]}  Bd7 {[%clk 0:02:39]} 7. Bc3 {[%clk 0:02:53]}  Nf6 {[%clk 0:02:39]} 8. Bd3 {[%clk 0:02:44]}  Bg7 {[%clk 0:02:37]} 9. Nbd2 {[%clk 0:02:42]}  a6 {[%clk 0:02:33]} 10. a4 {[%clk 0:02:38]}  O-O {[%clk 0:02:32]} 11. O-O {[%clk 0:02:36]}  b5 {[%clk 0:02:22]} 12. Bxa5 {[%clk 0:02:28]}  Qxa5 {[%clk 0:02:19]} 13. axb5 {[%clk 0:02:28]}  Qb6 {[%clk 0:02:20]} 14. Rxa6 {[%clk 0:02:19]}  Rxa6 {[%clk 0:02:21]} 15. bxa6 {[%clk 0:02:19]}  Qxa6 {[%clk 0:02:22]} 16. Qc2 {[%clk 0:01:57]}  Rb8 {[%clk 0:02:05]} 17. b3 {[%clk 0:01:49]}  Qa5 {[%clk 0:02:00]} 18. h3 {[%clk 0:01:45]}  Ra8 {[%clk 0:01:53]} 19. Re1 {[%clk 0:01:27]}  Nh5 {[%clk 0:01:47]} 20. g4 {[%clk 0:01:24]}  Nf6 {[%clk 0:01:46]} 21. Kg2 {[%clk 0:01:23]}  Bc8 {[%clk 0:01:35]} 22. e4 {[%clk 0:01:14]}  Nd7 {[%clk 0:01:35]} 23. h4 {[%clk 0:01:14]}  Ne5 {[%clk 0:01:31]} 24. Nxe5 {[%clk 0:01:04]}  Bxe5 {[%clk 0:01:32]} 25. Nf3 {[%clk 0:00:53]}  Bf4 {[%clk 0:00:40]} 26. g5 {[%clk 0:00:37]}  Bg4 {[%clk 0:00:40]} 27. Rb1 {[%clk 0:00:24]}  Qb4 {[%clk 0:00:30]} 28. Rb2 {[%clk 0:00:20]}  Rb8 {[%clk 0:00:30]} 29. Ra2 {[%clk 0:00:13]}  Qb7 {[%clk 0:00:29]} 30. Rb2 {[%clk 0:00:10]}  Qc8 {[%clk 0:00:29]} 31. Ng1 {[%clk 0:00:09]}  Be5 {[%clk 0:00:28]} 32. Rb1 {[%clk 0:00:09]}  Bh3+ {[%clk 0:00:23]} 33. Nxh3 {[%clk 0:00:06]}  Qg4+ {[%clk 0:00:24]} 34. Kf1 {[%clk 0:00:07]}  Qxh3+ {[%clk 0:00:24]} 35. Ke2 {[%clk 0:00:06]}  Qg4+ {[%clk 0:00:21]} 36. Kf1 {[%clk 0:00:05]}  Qxh4 {[%clk 0:00:21]} 37. Qd2 {[%clk 0:00:03]}  Ra8 {[%clk 0:00:19]} 38. Ke2 {[%clk 0:00:02]}  Bd4 {[%clk 0:00:17]} 39. Qe1 {[%clk 0:00:01]}  Ra2+ {[%clk 0:00:17]} 40. Kf1 {[%clk 0:00:01]}  Rxf2+ {[%clk 0:00:16]} 0-1


[Site "https://www.chess.com"]

[Event "Titled Tuesday Blitz October 26 2021"]
[White "Sadhwani, Raunak"]
[Black "Weetik, Vjacheslav"]
[WhiteFideId "35093487"]
[BlackFideId "4153472"]
[WhiteElo "2517"]
[BlackElo "2469"]
[Result "1/2-1/2"]
[Round "05"]
[TimeControl "180+1"]
[Date "2021.10.26"]
[WhiteClock "0:00:07"]
[BlackClock "0:00:07"]

1. e4 {[%clk 0:03:00]}  c6 {[%clk 0:02:56]} 2. d4 {[%clk 0:02:58]}  d5 {[%clk 0:02:56]} 3. exd5 {[%clk 0:02:59]}  cxd5 {[%clk 0:02:57]} 4. c4 {[%clk 0:02:46]}  Nf6 {[%clk 0:02:56]} 5. Nc3 {[%clk 0:02:46]}  e6 {[%clk 0:02:53]} 6. Nf3 {[%clk 0:02:44]}  Bb4 {[%clk 0:02:53]} 7. Bd3 {[%clk 0:02:40]}  dxc4 {[%clk 0:02:48]} 8. Bxc4 {[%clk 0:02:41]}  O-O {[%clk 0:02:48]} 9. O-O {[%clk 0:02:42]}  b6 {[%clk 0:02:41]} 10. a3 {[%clk 0:02:42]}  Bxc3 {[%clk 0:02:34]} 11. bxc3 {[%clk 0:02:43]}  Qc7 {[%clk 0:02:27]} 12. Qe2 {[%clk 0:02:26]}  Bb7 {[%clk 0:02:19]} 13. Ne5 {[%clk 0:02:14]}  Nbd7 {[%clk 0:02:15]} 14. Nxd7 {[%clk 0:01:51]}  Qxd7 {[%clk 0:02:00]} 15. Bb2 {[%clk 0:01:47]}  Nd5 {[%clk 0:01:44]} 16. Qd2 {[%clk 0:01:44]}  Qc6 {[%clk 0:01:40]} 17. Bxd5 {[%clk 0:01:27]}  Qxd5 {[%clk 0:01:40]} 18. f3 {[%clk 0:01:28]}  Rac8 {[%clk 0:01:33]} 19. Rfe1 {[%clk 0:01:28]}  Rfd8 {[%clk 0:01:32]} 20. Qf2 {[%clk 0:01:28]}  h6 {[%clk 0:01:26]} 21. a4 {[%clk 0:01:28]}  a5 {[%clk 0:01:14]} 22. h4 {[%clk 0:01:26]}  Rc4 {[%clk 0:01:12]} 23. Qg3 {[%clk 0:01:23]}  Qd7 {[%clk 0:01:08]} 24. h5 {[%clk 0:01:08]}  Bd5 {[%clk 0:00:58]} 25. Bc1 {[%clk 0:00:54]}  Kh7 {[%clk 0:00:57]} 26. Bf4 {[%clk 0:00:54]}  Rxc3 {[%clk 0:00:37]} 27. Be5 {[%clk 0:00:54]}  Rg8 {[%clk 0:00:37]} 28. Rac1 {[%clk 0:00:45]}  Rc6 {[%clk 0:00:26]} 29. Kh2 {[%clk 0:00:32]}  Qe8 {[%clk 0:00:26]} 30. Rxc6 {[%clk 0:00:28]}  Bxc6 {[%clk 0:00:26]} 31. Qg4 {[%clk 0:00:21]}  f6 {[%clk 0:00:22]} 32. Bc7 {[%clk 0:00:19]}  Bd5 {[%clk 0:00:21]} 33. Bxb6 {[%clk 0:00:12]}  Qxa4 {[%clk 0:00:19]} 34. Bc5 {[%clk 0:00:10]}  Qe8 {[%clk 0:00:17]} 35. Ra1 {[%clk 0:00:08]}  a4 {[%clk 0:00:17]} 36. Kg1 {[%clk 0:00:04]}  Bb3 {[%clk 0:00:17]} 37. Kf2 {[%clk 0:00:03]}  g6 {[%clk 0:00:18]} 38. hxg6+ {[%clk 0:00:03]}  Qxg6 {[%clk 0:00:18]} 39. Qxg6+ {[%clk 0:00:03]}  Kxg6 {[%clk 0:00:18]} 40. g4 {[%clk 0:00:04]}  Rc8 {[%clk 0:00:16]} 41. Ke3 {[%clk 0:00:04]}  h5 {[%clk 0:00:14]} 42. gxh5+ {[%clk 0:00:04]}  Kxh5 {[%clk 0:00:15]} 43. Rh1+ {[%clk 0:00:04]}  Kg6 {[%clk 0:00:15]} 44. Rg1+ {[%clk 0:00:05]}  Kf7 {[%clk 0:00:15]} 45. Rh1 {[%clk 0:00:05]}  Rg8 {[%clk 0:00:14]} 46. Rh7+ {[%clk 0:00:05]}  Rg7 {[%clk 0:00:15]} 47. Rh8 {[%clk 0:00:05]}  Rg2 {[%clk 0:00:14]} 48. Rf8+ {[%clk 0:00:06]}  Kg7 {[%clk 0:00:13]} 49. Ra8 {[%clk 0:00:04]}  Rc2 {[%clk 0:00:12]} 50. Ra7+ {[%clk 0:00:04]}  Kg6 {[%clk 0:00:12]} 51. Kf4 {[%clk 0:00:04]}  e5+ {[%clk 0:00:11]} 52. Ke4 {[%clk 0:00:04]}  Re2+ {[%clk 0:00:10]} 53. Kd3 {[%clk 0:00:04]}  Re1 {[%clk 0:00:09]} 54. dxe5 {[%clk 0:00:03]}  Rxe5 {[%clk 0:00:08]} 55. Bd4 {[%clk 0:00:04]}  Rd5 {[%clk 0:00:07]} 56. Ke4 {[%clk 0:00:04]}  f5+ {[%clk 0:00:06]} 57. Ke3 {[%clk 0:00:03]}  f4+ {[%clk 0:00:06]} 58. Ke4 {[%clk 0:00:04]}  Rb5 {[%clk 0:00:05]} 59. Rg7+ {[%clk 0:00:03]}  Kh6 {[%clk 0:00:06]} 60. Ra7 {[%clk 0:00:03]}  Kg6 {[%clk 0:00:05]} 61. Kxf4 {[%clk 0:00:02]}  Rf5+ {[%clk 0:00:05]} 62. Ke3 {[%clk 0:00:03]}  Rf7 {[%clk 0:00:06]} 63. Ra6+ {[%clk 0:00:03]}  Kh7 {[%clk 0:00:06]} 64. Be5 {[%clk 0:00:02]}  Rb7 {[%clk 0:00:03]} 65. f4 {[%clk 0:00:02]}  Kg8 {[%clk 0:00:04]} 66. f5 {[%clk 0:00:03]}  Kf7 {[%clk 0:00:04]} 67. Kf4 {[%clk 0:00:03]}  Rd7 {[%clk 0:00:05]} 68. Kg5 {[%clk 0:00:03]}  Rb7 {[%clk 0:00:04]} 69. Rf6+ {[%clk 0:00:03]}  Ke7 {[%clk 0:00:04]} 70. Rh6 {[%clk 0:00:03]}  Kd7 {[%clk 0:00:04]} 71. Ra6 {[%clk 0:00:02]}  Rb5 {[%clk 0:00:03]} 72. Kf6 {[%clk 0:00:01]}  Kc8 {[%clk 0:00:02]} 73. Bd4 {[%clk 0:00:01]}  Kb7 {[%clk 0:00:02]} 74. Ra7+ {[%clk 0:00:02]}  Kc6 {[%clk 0:00:03]} 75. Ra6+ {[%clk 0:00:02]}  Kd5 {[%clk 0:00:03]} 76. Bf2 {[%clk 0:00:03]}  Ke4 {[%clk 0:00:03]} 77. Kg6 {[%clk 0:00:02]}  Rxf5 {[%clk 0:00:02]} 78. Bg1 {[%clk 0:00:02]}  Rb5 {[%clk 0:00:02]} 79. Ba7 {[%clk 0:00:03]}  Kd3 {[%clk 0:00:03]} 80. Kf6 {[%clk 0:00:04]}  Kc4 {[%clk 0:00:03]} 81. Be3 {[%clk 0:00:04]}  Rd5 {[%clk 0:00:03]} 82. Bf4 {[%clk 0:00:04]}  Rd1 {[%clk 0:00:03]} 83. Be5 {[%clk 0:00:04]}  Rf1+ {[%clk 0:00:03]} 84. Ke7 {[%clk 0:00:05]}  Re1 {[%clk 0:00:04]} 85. Kd6 {[%clk 0:00:05]}  Rd1+ {[%clk 0:00:04]} 86. Ke7 {[%clk 0:00:05]}  Kd3 {[%clk 0:00:05]} 87. Rd6+ {[%clk 0:00:05]}  Ke4 {[%clk 0:00:04]} 88. Rxd1 {[%clk 0:00:05]}  Bxd1 {[%clk 0:00:05]} 89. Bd6 {[%clk 0:00:06]}  Kd3 {[%clk 0:00:05]} 90. Kd7 {[%clk 0:00:06]}  Kc2 {[%clk 0:00:05]} 91. Kc6 {[%clk 0:00:07]}  Kb3 {[%clk 0:00:06]} 92. Kb5 {[%clk 0:00:07]}  Bf3 {[%clk 0:00:07]} 93. Ka5 {[%clk 0:00:07]}  a3 {[%clk 0:00:07]} 94. Bxa3 {[%clk 0:00:07]} 1/2-1/2


[Site "https://www.chess.com"]

[Event "Titled Tuesday Blitz October 26 2021"]
[White "Shipov, Sergei"]
[Black "Bluebaum, Matthias"]
[WhiteFideId "4113624"]
[BlackFideId "24651516"]
[WhiteElo "2809"]
[BlackElo "2681"]
[Result "0-1"]
[Round "05"]
[TimeControl "180+1"]
[Date "2021.10.26"]
[WhiteClock "0:00:16"]
[BlackClock "0:00:16"]

1. d4 {[%clk 0:03:00]}  Nf6 {[%clk 0:02:58]} 2. c4 {[%clk 0:03:00]}  e6 {[%clk 0:02:58]} 3. Nc3 {[%clk 0:03:00]}  Bb4 {[%clk 0:02:57]} 4. Qc2 {[%clk 0:03:01]}  d5 {[%clk 0:02:53]} 5. a3 {[%clk 0:03:00]}  Bxc3+ {[%clk 0:02:46]} 6. Qxc3 {[%clk 0:03:01]}  b6 {[%clk 0:02:47]} 7. cxd5 {[%clk 0:02:53]}  Ne4 {[%clk 0:02:46]} 8. Qe3 {[%clk 0:02:09]}  Qxd5 {[%clk 0:02:34]} 9. f3 {[%clk 0:02:09]}  Nf6 {[%clk 0:02:21]} 10. Qc3 {[%clk 0:02:05]}  Nc6 {[%clk 0:02:06]} 11. e4 {[%clk 0:02:03]}  Nxe4 {[%clk 0:01:51]} 12. fxe4 {[%clk 0:02:02]}  Qxe4+ {[%clk 0:01:52]} 13. Be3 {[%clk 0:01:48]}  Ne7 {[%clk 0:01:34]} 14. Qd3 {[%clk 0:01:36]}  Qg4 {[%clk 0:01:29]} 15. Be2 {[%clk 0:01:32]}  Qf5 {[%clk 0:01:00]} 16. Qxf5 {[%clk 0:01:29]}  Nxf5 {[%clk 0:01:01]} 17. Bf2 {[%clk 0:01:29]}  Bb7 {[%clk 0:01:01]} 18. Nf3 {[%clk 0:01:29]}  O-O-O {[%clk 0:01:02]} 19. O-O-O {[%clk 0:01:30]}  f6 {[%clk 0:01:00]} 20. Rhe1 {[%clk 0:01:29]}  Bd5 {[%clk 0:00:59]} 21. Bd3 {[%clk 0:01:23]}  g5 {[%clk 0:00:56]} 22. Be4 {[%clk 0:01:20]}  h5 {[%clk 0:00:53]} 23. Bxd5 {[%clk 0:01:19]}  exd5 {[%clk 0:00:52]} 24. Re6 {[%clk 0:01:19]}  Rdf8 {[%clk 0:00:50]} 25. Rde1 {[%clk 0:01:14]}  h4 {[%clk 0:00:48]} 26. h3 {[%clk 0:01:12]}  Kd7 {[%clk 0:00:47]} 27. Bg1 {[%clk 0:01:05]}  Rh7 {[%clk 0:00:40]} 28. Bh2 {[%clk 0:01:00]}  Re7 {[%clk 0:00:34]} 29. Rxe7+ {[%clk 0:00:59]}  Nxe7 {[%clk 0:00:35]} 30. Kd2 {[%clk 0:00:58]}  Nc6 {[%clk 0:00:29]} 31. Kd3 {[%clk 0:00:56]}  Nd8 {[%clk 0:00:28]} 32. Rf1 {[%clk 0:00:52]}  Ne6 {[%clk 0:00:27]} 33. Ng1 {[%clk 0:00:46]}  c5 {[%clk 0:00:22]} 34. Ne2 {[%clk 0:00:43]}  c4+ {[%clk 0:00:23]} 35. Kd2 {[%clk 0:00:39]}  Kc6 {[%clk 0:00:21]} 36. Rf5 {[%clk 0:00:35]}  b5 {[%clk 0:00:20]} 37. Nc3 {[%clk 0:00:33]}  Nxd4 {[%clk 0:00:20]} 38. Rxd5 {[%clk 0:00:32]}  Nb3+ {[%clk 0:00:21]} 39. Kd1 {[%clk 0:00:31]}  a6 {[%clk 0:00:19]} 40. Rd6+ {[%clk 0:00:31]}  Kb7 {[%clk 0:00:20]} 41. Nd5 {[%clk 0:00:31]}  f5 {[%clk 0:00:19]} 42. Bg1 {[%clk 0:00:30]}  f4 {[%clk 0:00:17]} 43. Rb6+ {[%clk 0:00:29]}  Kc8 {[%clk 0:00:18]} 44. Rxa6 {[%clk 0:00:29]}  Kd7 {[%clk 0:00:17]} 45. Nf6+ {[%clk 0:00:27]}  Kc7 {[%clk 0:00:16]} 46. Ne4 {[%clk 0:00:27]}  Rd8+ {[%clk 0:00:16]} 47. Kc2 {[%clk 0:00:27]}  Re8 {[%clk 0:00:16]} 48. Nxg5 {[%clk 0:00:19]}  Re1 {[%clk 0:00:16]} 49. Nf3 {[%clk 0:00:16]}  Rc1# {[%clk 0:00:16]} 0-1


[Site "https://www.chess.com"]

[Event "Titled Tuesday Blitz October 26 2021"]
[White "Siva Mahadevan"]
[Black "Mirzoev, Azer"]
[WhiteFideId "25043153"]
[BlackFideId "13400304"]
[WhiteElo "2203"]
[BlackElo "2525"]
[Result "0-1"]
[Round "05"]
[TimeControl "180+1"]
[Date "2021.10.26"]
[WhiteClock "0:00:08"]
[BlackClock "0:00:11"]

1. e4 {[%clk 0:02:56]}  c6 {[%clk 0:02:59]} 2. d4 {[%clk 0:02:55]}  d5 {[%clk 0:03:00]} 3. e5 {[%clk 0:02:56]}  Bf5 {[%clk 0:03:00]} 4. c4 {[%clk 0:02:57]}  e6 {[%clk 0:03:00]} 5. Nc3 {[%clk 0:02:58]}  Nd7 {[%clk 0:02:57]} 6. Nge2 {[%clk 0:02:58]}  dxc4 {[%clk 0:02:54]} 7. Ng3 {[%clk 0:02:57]}  Bd3 {[%clk 0:02:55]} 8. Bxd3 {[%clk 0:02:57]}  cxd3 {[%clk 0:02:56]} 9. O-O {[%clk 0:02:57]}  Ne7 {[%clk 0:02:50]} 10. Bg5 {[%clk 0:02:37]}  Qb6 {[%clk 0:02:49]} 11. Qxd3 {[%clk 0:02:36]}  h6 {[%clk 0:02:39]} 12. Be3 {[%clk 0:02:33]}  Nd5 {[%clk 0:02:32]} 13. Nxd5 {[%clk 0:02:31]}  cxd5 {[%clk 0:02:32]} 14. f4 {[%clk 0:02:30]}  g6 {[%clk 0:02:31]} 15. Rac1 {[%clk 0:02:29]}  Be7 {[%clk 0:02:29]} 16. Rc2 {[%clk 0:02:29]}  h5 {[%clk 0:02:28]} 17. Rfc1 {[%clk 0:02:28]}  O-O {[%clk 0:02:21]} 18. Rc7 {[%clk 0:02:22]}  Rfd8 {[%clk 0:02:20]} 19. Nf1 {[%clk 0:02:09]}  Bf8 {[%clk 0:01:48]} 20. Nd2 {[%clk 0:02:05]}  Nb8 {[%clk 0:01:26]} 21. Qb3 {[%clk 0:01:48]}  Qxb3 {[%clk 0:01:25]} 22. Nxb3 {[%clk 0:01:49]}  b6 {[%clk 0:01:12]} 23. Bf2 {[%clk 0:01:40]}  Na6 {[%clk 0:01:09]} 24. Rb7 {[%clk 0:01:29]}  Rdb8 {[%clk 0:01:07]} 25. Rxb8 {[%clk 0:01:19]}  Rxb8 {[%clk 0:01:08]} 26. a3 {[%clk 0:01:19]}  Be7 {[%clk 0:01:07]} 27. h3 {[%clk 0:01:07]}  Kf8 {[%clk 0:01:04]} 28. g4 {[%clk 0:01:07]}  hxg4 {[%clk 0:01:05]} 29. hxg4 {[%clk 0:01:08]}  Ke8 {[%clk 0:01:05]} 30. Kg2 {[%clk 0:01:08]}  Kd7 {[%clk 0:00:53]} 31. Kf3 {[%clk 0:01:07]}  Rc8 {[%clk 0:00:51]} 32. Rxc8 {[%clk 0:01:06]}  Kxc8 {[%clk 0:00:52]} 33. f5 {[%clk 0:01:07]}  gxf5 {[%clk 0:00:50]} 34. gxf5 {[%clk 0:01:08]}  Nb8 {[%clk 0:00:42]} 35. Kg4 {[%clk 0:00:55]}  Kd7 {[%clk 0:00:38]} 36. f6 {[%clk 0:00:51]}  Bf8 {[%clk 0:00:38]} 37. Nd2 {[%clk 0:00:52]}  Nc6 {[%clk 0:00:38]} 38. Be3 {[%clk 0:00:52]}  Na5 {[%clk 0:00:32]} 39. Nf3 {[%clk 0:00:52]}  Nc4 {[%clk 0:00:31]} 40. Bc1 {[%clk 0:00:52]}  b5 {[%clk 0:00:31]} 41. Kh5 {[%clk 0:00:50]}  a5 {[%clk 0:00:28]} 42. Ne1 {[%clk 0:00:24]}  a4 {[%clk 0:00:25]} 43. Nd3 {[%clk 0:00:24]}  Ke8 {[%clk 0:00:20]} 44. Bg5 {[%clk 0:00:24]}  b4 {[%clk 0:00:14]} 45. axb4 {[%clk 0:00:22]}  Nxb2 {[%clk 0:00:14]} 46. Nc5 {[%clk 0:00:11]}  a3 {[%clk 0:00:14]} 47. Bc1 {[%clk 0:00:11]}  Nc4 {[%clk 0:00:13]} 48. Nb3 {[%clk 0:00:08]}  Bxb4 {[%clk 0:00:12]} 49. Kg4 {[%clk 0:00:08]}  a2 {[%clk 0:00:11]} 50. Kf3 {[%clk 0:00:09]}  Bc3 {[%clk 0:00:11]} 51. Ke2 {[%clk 0:00:10]}  Bxd4 {[%clk 0:00:11]} 52. Kd3 {[%clk 0:00:08]}  Bxe5 {[%clk 0:00:11]} 0-1


[Site "https://www.chess.com"]

[Event "Titled Tuesday Blitz October 26 2021"]
[White "Sydoryka, Vladyslav"]
[Black "Svane, Rasmus"]
[WhiteFideId "14145928"]
[BlackFideId "4657101"]
[WhiteElo "2282"]
[BlackElo "2643"]
[Result "0-1"]
[Round "05"]
[TimeControl "180+1"]
[Date "2021.10.26"]
[WhiteClock "0:00:19"]
[BlackClock "0:00:37"]

1. c4 {[%clk 0:03:00]}  e6 {[%clk 0:02:58]} 2. g3 {[%clk 0:03:01]}  d5 {[%clk 0:02:59]} 3. Bg2 {[%clk 0:03:01]}  Nf6 {[%clk 0:02:58]} 4. Nf3 {[%clk 0:03:02]}  Be7 {[%clk 0:02:59]} 5. O-O {[%clk 0:03:02]}  O-O {[%clk 0:02:59]} 6. b3 {[%clk 0:03:03]}  d4 {[%clk 0:02:59]} 7. e3 {[%clk 0:03:03]}  c5 {[%clk 0:02:58]} 8. exd4 {[%clk 0:03:03]}  cxd4 {[%clk 0:02:58]} 9. Re1 {[%clk 0:03:04]}  Nc6 {[%clk 0:02:57]} 10. Bb2 {[%clk 0:03:04]}  Re8 {[%clk 0:02:57]} 11. Na3 {[%clk 0:03:00]}  Bc5 {[%clk 0:02:50]} 12. Nc2 {[%clk 0:02:45]}  d3 {[%clk 0:02:41]} 13. Ne3 {[%clk 0:02:44]}  e5 {[%clk 0:02:34]} 14. Ng5 {[%clk 0:02:29]}  Bd4 {[%clk 0:02:01]} 15. Bxd4 {[%clk 0:02:22]}  Qxd4 {[%clk 0:02:02]} 16. Qf3 {[%clk 0:02:03]}  e4 {[%clk 0:01:52]} 17. Qf4 {[%clk 0:02:03]}  h6 {[%clk 0:01:48]} 18. Nh3 {[%clk 0:01:31]}  Ne5 {[%clk 0:01:10]} 19. Nf5 {[%clk 0:01:26]}  Bxf5 {[%clk 0:00:57]} 20. Qxf5 {[%clk 0:01:27]}  g6 {[%clk 0:00:46]} 21. Qf4 {[%clk 0:01:27]}  Kg7 {[%clk 0:00:46]} 22. Qe3 {[%clk 0:00:44]}  Qd7 {[%clk 0:00:41]} 23. Nf4 {[%clk 0:00:27]}  Neg4 {[%clk 0:00:41]} 24. Qc5 {[%clk 0:00:26]}  b6 {[%clk 0:00:39]} 25. Qb4 {[%clk 0:00:24]}  Qd4 {[%clk 0:00:39]} 26. Rf1 {[%clk 0:00:22]}  Nxf2 {[%clk 0:00:37]} 27. Qc3 {[%clk 0:00:19]}  Nh3+ {[%clk 0:00:37]} 0-1


[Site "https://www.chess.com"]